[Event "Chesscup Blitz 2020"]
[Site "Katowice"]
[Date "2020.09.12"]
[Round "6.9"]
[White "Majek, Kacper"]
[Black "Jarmula, Lukasz"]
[Result "0-1"]
[ECO "C54"]
[WhiteElo "2057"]
[BlackElo "2244"]
[Annotator "ChessBase"]
[PlyCount "59"]
[EventDate "2020.09.12"]
[EventType "swiss"]
[EventCountry "POL"]
[SourceTitle "playchess.com"]
[Source "ChessBase"]
[SourceQuality "1"]
[TimeControl "180+2"]

1. e4 {[%emt 0:00:00]} e5 {[%emt 0:00:00]} 2. Bc4 {[%emt 0:00:01]} Nc6 {[%emt 0:00:02]} 3. Nf3 {[%emt 0:00:01]} Bc5 {[%emt 0:00:02]} 4. c3 {[%emt 0:00:02]} Nf6 {[%emt 0:00:02]} 5. d4 {[%emt 0:00:01]} exd4 {[%emt 0:00:01]} 6. cxd4 {[%emt 0:00:02]} Bb4+ {[%emt 0:00:02]} 7. Nc3 {[%emt 0:00:00]} Nxe4 {[%emt 0:00:02]} 8. O-O {[%emt 0:00:04]} Bxc3 {[%emt 0:00:02]} 9. d5 {[%emt 0:00:01]} Bf6 {[%emt 0:00:18]} 10. Re1 {[%emt 0:00:05]} Ne7 {[%emt 0:00:02]} 11. Rxe4 {[%emt 0:00:04]} d6 {[%emt 0:00:12]} 12. Bg5 {[%emt 0:00:01]} Bxg5 {[%emt 0:00:03]} 13. Nxg5 {[%emt 0:00:02]} h6 {[%emt 0:00:02]} 14. Qh5 {[%emt 0:00:29]} O-O {[%emt 0:00:07]} 15. Nf3 {[%emt 0:00:32]} Ng6 {[%emt 0:00:18]} 16. Rae1 {[%emt 0:00:04]} Bd7 {[%emt 0:00:09]} 17. Bd3 {[%emt 0:00:15]} Qf6 {[%emt 0:00:04]} 18. g3 {[%emt 0:01:20]} Bf5 {[%emt 0:00:25]} 19. R4e3 {[%emt 0:00:12]} Bxd3 {[%emt 0:00:02]} 20. Rxd3 {[%emt 0:00:01]} Qxb2 {[%emt 0:00:10]} 21. Rb3 {[%emt 0:00:01]} Qxa2 {[%emt 0:00:15]} 22. Rxb7 {[%emt 0:00:01]} Qc4 {[%emt 0:00:13]} 23. Qf5 {[%emt 0:00:08]} a5 {[%emt 0:00:08]} 24. h4 {[%emt 0:00:07]} Rfe8 {[%emt 0:00:31]} 25. h5 {[%emt 0:00:02]} Rxe1+ {[%emt 0:00:03]} 26. Nxe1 {[%emt 0:00:01]} Ne5 {[%emt 0:00:06]} 27. Qf4 {[%emt 0:00:13]} Qxd5 {[%emt 0:00:15]} 28. Rxc7 {[%emt 0:00:01]} a4 {[%emt 0:00:02]} 29. Rc1 a3 {[%emt 0:00:02]} 30. Ra1 0-1

[Event "Chesscup Blitz 2020"]
[Site "Katowice"]
[Date "2020.09.12"]
[Round "6.10"]
[White "Kos, Pawel"]
[Black "Grochol, Kamil"]
[Result "0-1"]
[ECO "A06"]
[WhiteElo "2234"]
[BlackElo "1945"]
[Annotator "ChessBase"]
[PlyCount "47"]
[EventDate "2020.09.12"]
[EventType "swiss"]
[EventCountry "POL"]
[SourceTitle "playchess.com"]
[Source "ChessBase"]
[SourceQuality "1"]
[TimeControl "180+2"]

1. Nf3 {[%emt 0:00:00]} d5 {[%emt 0:00:00]} 2. g3 {[%emt 0:00:02]} Nf6 {[%emt 0:00:00]} 3. Bg2 {[%emt 0:00:01]} e6 {[%emt 0:00:00]} 4. O-O {[%emt 0:00:03]} Be7 {[%emt 0:00:01]} 5. d3 {[%emt 0:00:04]} O-O {[%emt 0:00:02]} 6. Nbd2 {[%emt 0:00:01]} c5 {[%emt 0:00:02]} 7. e4 {[%emt 0:00:15]} Nc6 {[%emt 0:00:03]} 8. e5 {[%emt 0:00:28]} Nd7 {[%emt 0:00:01]} 9. Re1 {[%emt 0:00:01]} b5 {[%emt 0:00:06]} 10. c4 {[%emt 0:00:03]} bxc4 {[%emt 0:00:51]} 11. dxc4 {[%emt 0:00:03]} Nb6 {[%emt 0:00:01]} 12. cxd5 {[%emt 0:00:10]} Nxd5 {[%emt 0:00:02]} 13. a3 {[%emt 0:00:27]} Rb8 {[%emt 0:00:26]} 14. Ne4 {[%emt 0:00:10]} h6 {[%emt 0:00:03]} 15. h4 {[%emt 0:00:08]} Bb7 {[%emt 0:00:33]} 16. Qc2 {[%emt 0:00:24]} Qb6 {[%emt 0:00:14]} 17. Bd2 {[%emt 0:00:46]} Ba6 {[%emt 0:00:14]} 18. Rab1 {[%emt 0:00:05]} Rfc8 {[%emt 0:00:08]} 19. b3 {[%emt 0:00:13]} Nd4 {[%emt 0:00:19]} 20. Nxd4 {[%emt 0:00:03]} cxd4 {[%emt 0:00:01]} 21. Qd1 {[%emt 0:00:04]} Nc3 {[%emt 0:00:07]} 22. Qg4 {[%emt 0:00:08]} Kf8 {[%emt 0:00:19]} 23. Rb2 {[%emt 0:00:04]} Bxa3 {[%emt 0:00:04]} 24. Rc2 0-1

[Event "Chesscup Blitz 2020"]
[Site "Katowice"]
[Date "2020.09.12"]
[Round "8.10"]
[White "Tsatsalashvili, Keti"]
[Black "Zima, Teofil"]
[Result "1-0"]
[ECO "A48"]
[WhiteElo "2246"]
[BlackElo "1897"]
[Annotator "ChessBase"]
[PlyCount "46"]
[EventDate "2020.09.12"]
[EventType "swiss"]
[EventCountry "POL"]
[SourceTitle "playchess.com"]
[Source "ChessBase"]
[SourceQuality "1"]
[TimeControl "180+2"]

1. d4 {[%emt 0:00:00]} Nf6 {[%emt 0:00:00]} 2. Nf3 {[%emt 0:00:02]} g6 {[%emt 0:00:00]} 3. c4 {[%emt 0:00:00]} Bg7 {[%emt 0:00:00]} 4. Nc3 {[%emt 0:00:01]} d6 {[%emt 0:00:02]} 5. e4 {[%emt 0:00:01]} O-O {[%emt 0:00:01]} 6. h3 {[%emt 0:00:01]} Nbd7 {[%emt 0:00:04]} 7. Be2 {[%emt 0:00:02]} e5 {[%emt 0:00:02]} 8. Be3 {[%emt 0:00:09]} exd4 {[%emt 0:00:13]} 9. Nxd4 {[%emt 0:00:06]} Re8 {[%emt 0:00:01]} 10. f3 {[%emt 0:00:22]} c6 {[%emt 0:00:14]} 11. Nc2 {[%emt 0:00:13]} d5 {[%emt 0:00:27]} 12. cxd5 {[%emt 0:00:04]} cxd5 {[%emt 0:00:05]} 13. exd5 {[%emt 0:00:11]} Nb6 {[%emt 0:00:17]} 14. d6 {[%emt 0:00:23]} Bf5 {[%emt 0:00:10]} 15. Bf2 {[%emt 0:00:10]} Nc4 {[%emt 0:00:37]} 16. O-O {[%emt 0:00:15]} Nxb2 {[%emt 0:00:09]} 17. Qd2 {[%emt 0:00:13]} Qa5 {[%emt 0:00:30]} 18. Nd4 {[%emt 0:00:23]} Na4 {[%emt 0:00:22]} 19. Ne4 {[%emt 0:00:17]} Qxd2 {[%emt 0:00:07]} 20. Nxd2 {[%emt 0:00:00]} Bd7 {[%emt 0:00:09]} 21. Bb5 {[%emt 0:00:11]} Nc3 {[%emt 0:00:03]} 22. Bxd7 Nxd7 {[%emt 0:00:01]} 23. N2b3 {[%emt 0:00:15]} Ne2+ 1-0

[Event "Chesscup Blitz 2020"]
[Site "Katowice"]
[Date "2020.09.12"]
[Round "9.8"]
[White "Jakubowska, Anna"]
[Black "Tsatsalashvili, Keti"]
[Result "1-0"]
[ECO "B25"]
[WhiteElo "2051"]
[BlackElo "2246"]
[Annotator "ChessBase"]
[PlyCount "55"]
[EventDate "2020.09.12"]
[EventType "swiss"]
[EventCountry "POL"]
[SourceTitle "playchess.com"]
[Source "ChessBase"]
[SourceQuality "1"]
[TimeControl "180+2"]

1. e4 {[%emt 0:00:00]} c5 {[%emt 0:00:00]} 2. Nc3 {[%emt 0:00:00]} d6 {[%emt 0:00:00]} 3. g3 {[%emt 0:00:01]} Nc6 {[%emt 0:00:01]} 4. Bg2 {[%emt 0:00:02]} g6 {[%emt 0:00:01]} 5. d3 {[%emt 0:00:00]} Bg7 {[%emt 0:00:01]} 6. Nh3 {[%emt 0:00:03]} e5 {[%emt 0:00:04]} 7. O-O {[%emt 0:00:02]} Nge7 {[%emt 0:00:09]} 8. f4 {[%emt 0:00:01]} O-O {[%emt 0:00:05]} 9. f5 {[%emt 0:00:02]} gxf5 {[%emt 0:00:07]} 10. exf5 {[%emt 0:00:02]} Bxf5 {[%emt 0:00:03]} 11. Rxf5 {[%emt 0:00:01]} Nxf5 {[%emt 0:00:03]} 12. Be4 {[%emt 0:00:01]} Ncd4 {[%emt 0:01:01]} 13. Qh5 {[%emt 0:00:12]} Qf6 {[%emt 0:01:20]} 14. Nd5 {[%emt 0:00:01]} Qe6 {[%emt 0:00:01]} 15. c3 {[%emt 0:01:37]} h6 {[%emt 0:00:19]} 16. cxd4 {[%emt 0:00:08]} Nxd4 {[%emt 0:00:01]} 17. Nc7 {[%emt 0:00:07]} Qd7 {[%emt 0:00:06]} 18. Nxa8 {[%emt 0:00:04]} Rxa8 {[%emt 0:00:02]} 19. Bxh6 {[%emt 0:00:06]} f5 {[%emt 0:00:07]} 20. Bd5+ {[%emt 0:00:04]} Kf8 {[%emt 0:00:01]} 21. Ng5 {[%emt 0:00:04]} Bxh6 {[%emt 0:00:04]} 22. Qxh6+ {[%emt 0:00:02]} Ke7 {[%emt 0:00:01]} 23. Qg7+ {[%emt 0:00:04]} Kd8 {[%emt 0:00:00]} 24. Qf8+ {[%emt 0:00:10]} Kc7 {[%emt 0:00:01]} 25. Qxa8 {[%emt 0:00:03]} Kb6 {[%emt 0:00:01]} 26. Qxb7+ {[%emt 0:00:08]} Qxb7 {[%emt 0:00:01]} 27. Bxb7 {[%emt 0:00:01]} Kxb7 {[%emt 0:00:02]} 28. h4 {[%emt 0:00:02]} 1-0

[Event "Chesscup Blitz 2020"]
[Site "Katowice"]
[Date "2020.09.12"]
[Round "9.9"]
[White "Jarmula, Lukasz"]
[Black "Wilk, Igor"]
[Result "1-0"]
[ECO "A19"]
[WhiteElo "2244"]
[BlackElo "1744"]
[Annotator "ChessBase"]
[PlyCount "65"]
[EventDate "2020.09.12"]
[EventType "swiss"]
[EventCountry "POL"]
[SourceTitle "playchess.com"]
[Source "ChessBase"]
[SourceQuality "1"]
[TimeControl "180+2"]

1. c4 Nf6 2. Nc3 e6 3. e4 c5 4. e5 Ng8 5. Nf3 Nc6 6. d4 cxd4 7. Nxd4 Nxe5 8. Ndb5 f6 9. Be3 a6 10. Nd6+ Bxd6 11. Qxd6 Ne7 12. Bb6 Nf5 13. Qc5 Qe7 14. Qxe7+ Kxe7 15. f4 Nc6 16. O-O-O d5 17. cxd5 exd5 18. Nxd5+ Kf7 19. Nc7 Rb8 20. Bc4+ {[%emt 0:01:44]} Kg6 {[%emt 0:01:28]} 21. g4 {[%emt 0:00:06]} Nfe7 {[%emt 0:00:16]} 22. f5+ {[%emt 0:00:06]} Kh6 {[%emt 0:00:09]} 23. Rd6 {[%emt 0:00:27]} Ne5 {[%emt 0:00:29]} 24. Be2 {[%emt 0:00:18]} Rf8 {[%emt 0:00:16]} 25. Be3+ {[%emt 0:00:07]} g5 {[%emt 0:00:01]} 26. h4 {[%emt 0:00:02]} Kg7 {[%emt 0:00:11]} 27. hxg5 {[%emt 0:00:01]} fxg5 {[%emt 0:00:01]} 28. Bd4 {[%emt 0:00:07]} N7c6 {[%emt 0:00:05]} 29. Rxc6 {[%emt 0:00:02]} bxc6 {[%emt 0:00:03]} 30. Bxe5+ {[%emt 0:00:02]} Kg8 {[%emt 0:00:08]} 31. Bc4+ {[%emt 0:00:02]} Rf7 {[%emt 0:00:01]} 32. Bxf7+ {[%emt 0:00:04]} Kxf7 {[%emt 0:00:01]} 33. Rxh7+ {[%emt 0:00:02]} 1-0

[Event "Chesscup Blitz 2020"]
[Site "Katowice"]
[Date "2020.09.12"]
[Round "10.10"]
[White "Tsatsalashvili, Keti"]
[Black "Flak, Pawel"]
[Result "0-1"]
[ECO "A40"]
[WhiteElo "2246"]
[BlackElo "2157"]
[Annotator "ChessBase"]
[PlyCount "142"]
[EventDate "2020.09.12"]
[EventType "swiss"]
[EventCountry "POL"]
[SourceTitle "playchess.com"]
[Source "ChessBase"]
[SourceQuality "1"]
[TimeControl "180+2"]

1. d4 {[%emt 0:00:00]} b6 {[%emt 0:00:00]} 2. c4 {[%emt 0:00:01]} Bb7 {[%emt 0:00:00]} 3. Nc3 {[%emt 0:00:01]} Nf6 {[%emt 0:00:00]} 4. Nf3 {[%emt 0:00:05]} e6 {[%emt 0:00:01]} 5. a3 {[%emt 0:00:01]} Be7 {[%emt 0:00:02]} 6. Qc2 {[%emt 0:00:03]} d5 {[%emt 0:00:17]} 7. cxd5 {[%emt 0:00:02]} Nxd5 {[%emt 0:00:01]} 8. e4 {[%emt 0:00:03]} Nxc3 {[%emt 0:00:01]} 9. bxc3 {[%emt 0:00:01]} O-O {[%emt 0:00:02]} 10. Bd3 {[%emt 0:00:12]} c5 {[%emt 0:00:01]} 11. O-O {[%emt 0:00:05]} cxd4 {[%emt 0:00:01]} 12. cxd4 {[%emt 0:00:01]} Nc6 {[%emt 0:00:01]} 13. Bb2 {[%emt 0:00:23]} Rc8 {[%emt 0:00:04]} 14. Qe2 {[%emt 0:00:04]} Na5 {[%emt 0:00:07]} 15. Rad1 {[%emt 0:00:12]} Qd7 {[%emt 0:00:13]} 16. d5 {[%emt 0:00:28]} Qa4 {[%emt 0:00:33]} 17. Bb5 {[%emt 0:00:25]} Qc2 {[%emt 0:00:22]} 18. Rd2 {[%emt 0:00:04]} Qc5 {[%emt 0:00:00]} 19. dxe6 {[%emt 0:00:18]} fxe6 {[%emt 0:00:08]} 20. Bd7 {[%emt 0:00:01]} Rcd8 {[%emt 0:00:08]} 21. Bxe6+ {[%emt 0:00:03]} Kh8 {[%emt 0:00:01]} 22. Rxd8 {[%emt 0:00:14]} Bxd8 {[%emt 0:00:09]} 23. Ne5 {[%emt 0:00:07]} Qe7 {[%emt 0:00:08]} 24. Qg4 {[%emt 0:00:23]} Bxe4 {[%emt 0:00:25]} 25. Nf7+ {[%emt 0:00:11]} Rxf7 {[%emt 0:00:09]} 26. Bxf7 {[%emt 0:00:02]} Qxf7 {[%emt 0:00:17]} 27. Qxe4 {[%emt 0:00:01]} h6 {[%emt 0:00:10]} 28. Qa8 {[%emt 0:00:05]} Qd7 {[%emt 0:00:05]} 29. h3 {[%emt 0:00:08]} Kh7 {[%emt 0:00:06]} 30. Qe4+ {[%emt 0:00:01]} Kg8 {[%emt 0:00:02]} 31. Qf3 {[%emt 0:00:03]} Be7 {[%emt 0:00:16]} 32. Rd1 {[%emt 0:00:01]} Qe6 {[%emt 0:00:01]} 33. Qc3 {[%emt 0:00:05]} Qf7 {[%emt 0:00:04]} 34. Rd7 {[%emt 0:00:04]} Kf8 {[%emt 0:00:03]} 35. Qc8+ {[%emt 0:00:02]} Qe8 {[%emt 0:00:01]} 36. Qxe8+ {[%emt 0:00:03]} Kxe8 {[%emt 0:00:01]} 37. Rxa7 {[%emt 0:00:01]} Nc6 {[%emt 0:00:03]} 38. Ra8+ {[%emt 0:00:01]} Kf7 {[%emt 0:00:00]} 39. Rc8 {[%emt 0:00:03]} Na5 {[%emt 0:00:01]} 40. Rb8 {[%emt 0:00:01]} Nc4 {[%emt 0:00:01]} 41. Bc1 {[%emt 0:00:02]} Ke6 {[%emt 0:00:01]} 42. a4 {[%emt 0:00:02]} Bf6 {[%emt 0:00:01]} 43. Rb7 {[%emt 0:00:02]} Kd5 {[%emt 0:00:02]} 44. Be3 {[%emt 0:00:03]} Kc6 {[%emt 0:00:01]} 45. Rb8 {[%emt 0:00:02]} Be5 {[%emt 0:00:01]} 46. Kf1 {[%emt 0:00:01]} Bxb8 {[%emt 0:00:01]} 47. Ke2 {[%emt 0:00:02]} Bd6 {[%emt 0:00:03]} 48. Bd4 {[%emt 0:00:01]} g6 {[%emt 0:00:01]} 49. g4 {[%emt 0:00:00]} Kd5 {[%emt 0:00:01]} 50. Bg7 {[%emt 0:00:01]} h5 {[%emt 0:00:01]} 51. gxh5 {[%emt 0:00:01]} gxh5 {[%emt 0:00:00]} 52. Bc3 {[%emt 0:00:03]} Be5 {[%emt 0:00:03]} 53. Bb4 {[%emt 0:00:01]} Bd6 {[%emt 0:00:02]} 54. Bc3 {[%emt 0:00:00]} Be5 {[%emt 0:00:01]} 55. Bb4 {[%emt 0:00:01]} Bd4 {[%emt 0:00:02]} 56. f3 {[%emt 0:00:02]} Bc5 {[%emt 0:00:01]} 57. Bc3 {[%emt 0:00:00]} Bd4 {[%emt 0:00:01]} 58. Bb4 {[%emt 0:00:01]} Be5 {[%emt 0:00:04]} 59. Kd3 {[%emt 0:00:03]} Bf4 {[%emt 0:00:02]} 60. Ke2 {[%emt 0:00:02]} Bh6 {[%emt 0:00:02]} 61. Bc3 {[%emt 0:00:00]} Kc5 {[%emt 0:00:01]} 62. Be1 Nb2 {[%emt 0:00:02]} 63. a5 {[%emt 0:00:04]} b5 {[%emt 0:00:01]} 64. Bf2+ {[%emt 0:00:02]} Kc6 {[%emt 0:00:00]} 65. a6 {[%emt 0:00:00]} Nc4 {[%emt 0:00:02]} 66. Kd3 {[%emt 0:00:06]} Bf8 {[%emt 0:00:02]} 67. f4 {[%emt 0:00:04]} Bd6 {[%emt 0:00:09]} 68. f5 {[%emt 0:00:01]} Bc7 {[%emt 0:00:10]} 69. f6 {[%emt 0:00:02]} Bb6 {[%emt 0:00:05]} 70. Bxb6 {[%emt 0:00:07]} Kxb6 {[%emt 0:00:01]} 71. f7 {[%emt 0:00:01]} Ne5+ 0-1

[Event "Chesscup Blitz 2020"]
[Site "Katowice"]
[Date "2020.09.12"]
[Round "11.9"]
[White "Walter, Szymon"]
[Black "Goraj, Barbara"]
[Result "1-0"]
[ECO "B23"]
[WhiteElo "2227"]
[BlackElo "2078"]
[Annotator "ChessBase"]
[PlyCount "105"]
[EventDate "2020.09.12"]
[EventType "swiss"]
[EventCountry "POL"]
[SourceTitle "playchess.com"]
[Source "ChessBase"]
[SourceQuality "1"]
[TimeControl "180+2"]

1. e4 {[%emt 0:00:00]} c5 {[%emt 0:00:00]} 2. Nc3 {[%emt 0:00:01]} Nc6 {[%emt 0:00:00]} 3. f4 {[%emt 0:00:02]} g6 {[%emt 0:00:02]} 4. Nf3 {[%emt 0:00:01]} Bg7 {[%emt 0:00:01]} 5. Bb5 {[%emt 0:00:02]} Nd4 {[%emt 0:00:15]} 6. O-O {[%emt 0:00:03]} a6 {[%emt 0:00:05]} 7. Bc4 {[%emt 0:00:01]} e6 {[%emt 0:00:01]} 8. d3 {[%emt 0:00:03]} Ne7 {[%emt 0:00:04]} 9. Nxd4 {[%emt 0:00:03]} cxd4 {[%emt 0:00:01]} 10. Ne2 {[%emt 0:00:02]} O-O {[%emt 0:00:07]} 11. Qe1 {[%emt 0:00:11]} d5 {[%emt 0:00:11]} 12. Bb3 {[%emt 0:00:01]} dxe4 {[%emt 0:00:11]} 13. dxe4 {[%emt 0:00:02]} d3 {[%emt 0:00:24]} 14. cxd3 {[%emt 0:00:02]} Qxd3 {[%emt 0:00:02]} 15. Nc3 {[%emt 0:00:06]} b5 {[%emt 0:00:04]} 16. Be3 {[%emt 0:00:17]} Qd6 {[%emt 0:00:14]} 17. Rd1 {[%emt 0:00:15]} Qc6 {[%emt 0:00:13]} 18. Bd4 {[%emt 0:00:09]} Bxd4+ {[%emt 0:00:17]} 19. Rxd4 {[%emt 0:00:02]} Qc5 {[%emt 0:00:01]} 20. Qf2 {[%emt 0:00:11]} Nc6 {[%emt 0:00:37]} 21. Rd2 {[%emt 0:00:08]} Qxf2+ {[%emt 0:00:10]} 22. Kxf2 {[%emt 0:00:03]} Na5 {[%emt 0:00:07]} 23. Ke3 {[%emt 0:00:06]} Bb7 {[%emt 0:00:06]} 24. Rfd1 {[%emt 0:00:05]} Rac8 {[%emt 0:00:19]} 25. Rd7 {[%emt 0:00:22]} Bc6 {[%emt 0:00:02]} 26. R7d6 {[%emt 0:00:04]} Bb7 {[%emt 0:00:04]} 27. Ne2 {[%emt 0:00:25]} Rc7 {[%emt 0:00:01]} 28. Nd4 {[%emt 0:00:09]} Nxb3 {[%emt 0:00:03]} 29. axb3 {[%emt 0:00:02]} Rfc8 {[%emt 0:00:06]} 30. Nf3 {[%emt 0:00:14]} a5 {[%emt 0:00:06]} 31. Ne5 {[%emt 0:00:08]} Kg7 {[%emt 0:00:01]} 32. g4 {[%emt 0:00:08]} Rc2 {[%emt 0:00:02]} 33. R6d2 {[%emt 0:00:03]} a4 {[%emt 0:00:03]} 34. Rxc2 {[%emt 0:00:06]} Rxc2 {[%emt 0:00:01]} 35. Rd7 {[%emt 0:00:01]} Bc8 {[%emt 0:00:04]} 36. Rxf7+ {[%emt 0:00:02]} Kg8 {[%emt 0:00:01]} 37. bxa4 {[%emt 0:00:08]} bxa4 {[%emt 0:00:03]} 38. Ra7 {[%emt 0:00:02]} Rxb2 {[%emt 0:00:01]} 39. Ra8 {[%emt 0:00:06]} Rc2 {[%emt 0:00:01]} 40. Rxa4 {[%emt 0:00:02]} Kg7 {[%emt 0:00:04]} 41. Ra7+ {[%emt 0:00:03]} Kg8 {[%emt 0:00:02]} 42. h4 {[%emt 0:00:02]} Rc3+ {[%emt 0:00:02]} 43. Kd4 {[%emt 0:00:01]} Rc1 {[%emt 0:00:01]} 44. g5 {[%emt 0:00:05]} Rc2 {[%emt 0:00:02]} 45. Ng4 {[%emt 0:00:02]} Rd2+ {[%emt 0:00:03]} 46. Ke5 {[%emt 0:00:01]} Rc2 {[%emt 0:00:04]} 47. Nf6+ {[%emt 0:00:02]} Kf8 {[%emt 0:00:01]} 48. Nxh7+ {[%emt 0:00:01]} Ke8 {[%emt 0:00:01]} 49. Nf6+ {[%emt 0:00:04]} Kd8 {[%emt 0:00:02]} 50. h5 {[%emt 0:00:05]} gxh5 {[%emt 0:00:02]} 51. g6 {[%emt 0:00:02]} Rg2 {[%emt 0:00:03]} 52. g7 {[%emt 0:00:01]} h4 {[%emt 0:00:03]} 53. g8=Q+ {[%emt 0:00:04]} 1-0

[Event "Chesscup Blitz 2020"]
[Site "Katowice"]
[Date "2020.09.12"]
[Round "11.10"]
[White "Posluszny, Tomasz"]
[Black "Faron, Rafal"]
[Result "0-1"]
[ECO "D20"]
[WhiteElo "2065"]
[BlackElo "2224"]
[Annotator "NA"]
[PlyCount "51"]
[EventDate "2020.09.12"]
[EventType "swiss"]
[EventCountry "POL"]
[SourceTitle "playchess.com"]
[Source "ChessBase"]
[SourceQuality "1"]
[TimeControl "180+2"]

1. d4 {[%emt 0:00:00]} d5 {[%emt 0:00:00]} 2. c4 {[%emt 0:00:00]} dxc4 {[%emt 0:00:00]} 3. e4 {[%emt 0:00:02]} Nc6 {[%emt 0:00:04]} 4. Nf3 {[%emt 0:00:05]} Bg4 {[%emt 0:00:02]} 5. d5 {[%emt 0:00:12]} Ne5 {[%emt 0:00:12]} 6. Bxc4 {[%emt 0:00:05]} Nxc4 {[%emt 0:00:43]} 7. Qa4+ {[%emt 0:00:01]} c6 {[%emt 0:00:01]} 8. Qxc4 {[%emt 0:00:12]} cxd5 {[%emt 0:00:04]} 9. Qxd5 {[%emt 0:00:14]} Qxd5 {[%emt 0:00:15]} 10. exd5 {[%emt 0:00:01]} Bxf3 {[%emt 0:00:01]} 11. gxf3 {[%emt 0:00:02]} Nf6 {[%emt 0:00:03]} 12. Nc3 {[%emt 0:00:02]} Rd8 {[%emt 0:00:01]} 13. Be3 {[%emt 0:00:04]} Nxd5 {[%emt 0:00:08]} 14. Nxd5 {[%emt 0:00:11]} Rxd5 {[%emt 0:00:01]} 15. Bxa7 {[%emt 0:00:02]} e6 {[%emt 0:00:04]} 16. Ke2 {[%emt 0:00:06]} Bc5 {[%emt 0:00:47]} 17. Bxc5 {[%emt 0:00:03]} Rxc5 18. Rac1 {[%emt 0:00:03]} Rxc1 {[%emt 0:00:02]} 19. Rxc1 {[%emt 0:00:00]} Kd7 {[%emt 0:00:01]} 20. Rd1+ {[%emt 0:00:12]} Ke7 {[%emt 0:00:02]} 21. Rd4 {[%emt 0:00:04]} Rc8 {[%emt 0:00:08]} 22. Rb4 {[%emt 0:00:07]} Rc7 {[%emt 0:00:05]} 23. Kd3 {[%emt 0:00:06]} g6 {[%emt 0:00:05]} 24. a4 {[%emt 0:00:02]} h5 {[%emt 0:00:02]} 25. Kd4 {[%emt 0:00:14]} Kf6 {[%emt 0:00:05]} 26. Rb5 0-1

[Event "Chesscup Blitz 2020"]
[Site "Katowice"]
[Date "2020.09.12"]
[Round "13.10"]
[White "Kot, Jerzy"]
[Black "Tsatsalashvili, Keti"]
[Result "0-1"]
[ECO "A00"]
[WhiteElo "1924"]
[BlackElo "2246"]
[Annotator "ChessBase"]
[PlyCount "64"]
[EventDate "2020.09.12"]
[EventType "swiss"]
[EventCountry "POL"]
[SourceTitle "playchess.com"]
[Source "ChessBase"]
[SourceQuality "1"]
[TimeControl "180+2"]

1. g3 {[%emt 0:00:00]} Nf6 {[%emt 0:00:00]} 2. Bg2 {[%emt 0:00:01]} d5 {[%emt 0:00:03]} 3. Nf3 {[%emt 0:00:02]} c5 {[%emt 0:00:03]} 4. O-O {[%emt 0:00:02]} Nc6 {[%emt 0:00:01]} 5. c4 {[%emt 0:00:01]} d4 {[%emt 0:00:02]} 6. e3 {[%emt 0:00:05]} g6 {[%emt 0:00:20]} 7. exd4 {[%emt 0:00:02]} cxd4 {[%emt 0:00:01]} 8. d3 {[%emt 0:00:09]} Bg7 {[%emt 0:00:01]} 9. b4 {[%emt 0:00:02]} Nxb4 {[%emt 0:00:17]} 10. Qa4+ {[%emt 0:00:02]} Nc6 {[%emt 0:00:01]} 11. Ne5 {[%emt 0:00:03]} O-O {[%emt 0:00:33]} 12. Nxc6 {[%emt 0:00:03]} bxc6 {[%emt 0:00:01]} 13. Qxc6 {[%emt 0:00:05]} Rb8 {[%emt 0:00:02]} 14. Nd2 {[%emt 0:00:07]} Bf5 {[%emt 0:00:41]} 15. Ne4 {[%emt 0:00:12]} Rb6 {[%emt 0:00:01]} 16. Qa4 {[%emt 0:00:20]} Bxe4 {[%emt 0:00:19]} 17. dxe4 {[%emt 0:00:02]} e5 {[%emt 0:00:11]} 18. Ba3 {[%emt 0:00:14]} Re8 {[%emt 0:00:01]} 19. Qxa7 {[%emt 0:00:02]} Rc6 {[%emt 0:00:06]} 20. Rfc1 {[%emt 0:00:13]} Qa8 {[%emt 0:00:13]} 21. Bc5 {[%emt 0:00:10]} Qxa7 {[%emt 0:00:06]} 22. Bxa7 {[%emt 0:00:02]} Ra8 {[%emt 0:00:01]} 23. f4 {[%emt 0:00:03]} Rxa7 {[%emt 0:00:09]} 24. fxe5 {[%emt 0:00:01]} Ng4 {[%emt 0:00:04]} 25. e6 {[%emt 0:00:07]} fxe6 {[%emt 0:00:03]} 26. e5 {[%emt 0:00:08]} Rc5 {[%emt 0:00:02]} 27. a4 {[%emt 0:00:05]} Nxe5 {[%emt 0:00:04]} 28. Re1 {[%emt 0:00:02]} Rxc4 {[%emt 0:00:04]} 29. Bh3 {[%emt 0:00:04]} Kf7 {[%emt 0:00:07]} 30. a5 {[%emt 0:00:03]} Nf3+ {[%emt 0:00:01]} 31. Kf2 {[%emt 0:00:08]} Nxe1 {[%emt 0:00:02]} 32. Rxe1 {[%emt 0:00:01]} e5 {[%emt 0:00:02]} 0-1